bitfinex/quotes_ETHUSD_20240822
["timestamp","ask_amount","ask_price","bid_price","bid_amount"]
[1724297280566,0.03009682,2615.1,2615.0,4.5889]
[1724297282464,0.03009682,2615.1,2615.0,2.29445]
[1724297283381,0.03009682,2615.1,2614.7,3.0]
[1724297283673,0.03009682,2615.1,2614.4,2.29493]
[1724297283674,2.3941,2615.0,2614.4,2.29493]
[1724297283826,2.37123623,2614.9,2614.4,2.29493]
[1724297284028,2.3941,2615.0,2614.4,2.29491]
[1724297284226,2.29455,2614.9,2614.4,2.29491]
[1724297284428,0.468865,2614.8,2614.4,2.29491]
[1724297284657,0.468865,2614.8,2614.5,2.29488]
[1724297284841,0.06150326,2614.7,2614.5,2.29488]
[1724297285062,4.68856,2615.0,2614.5,2.29488]
[1724297285365,0.06157701,2614.9,2614.5,2.29488]
[1724297285574,0.59078658,2614.9,2614.5,2.29488]
[1724297286747,0.59078658,2614.9,2614.6,2.29479]
[1724297286748,0.06157701,2614.9,2614.6,2.29479]
[1724297287256,0.06157701,2614.9,2614.5,4.58972]
[1724297287753,0.06157701,2614.9,2614.5,2.29484]
[1724297288071,0.06157701,2614.9,2614.5,4.58968]
[1724297288243,0.06157701,2614.9,2614.5,2.29484]
[1724297288444,0.06157701,2614.9,2614.6,2.29478]
[1724297288740,0.46171294,2614.9,2614.6,2.29478]
[1724297289628,0.46171294,2614.9,2614.5,2.29484]
[1724297289629,0.8014901,2614.9,2614.5,2.29484]
[1724297292046,2.2701,2614.8,2614.5,2.29484]
[1724297292375,0.06100782,2614.7,2614.5,2.29484]
[1724297292869,0.06095091,2614.6,2614.5,2.29484]
[1724297293070,2.2701,2614.8,2614.5,2.29484]
[1724297293471,0.06102186,2614.7,2614.5,2.29484]
[1724297293679,2.76657059,2614.8,2614.4,2.29492]
[1724297293825,0.0610227,2614.7,2614.4,2.29492]
[1724297294023,2.2701,2614.8,2614.4,2.29492]
[1724297294269,0.0610227,2614.7,2614.4,2.29492]
[1724297294582,2.2701,2614.8,2614.4,2.29492]
[1724297295028,0.0610227,2614.7,2614.4,2.29492]
[1724297295228,2.2701,2614.8,2614.5,4.5897]
[1724297295429,0.0610227,2614.7,2614.5,4.5897]
[1724297295629,2.4817,2615.0,2614.5,4.5897]
[1724297295872,0.06113652,2614.9,2614.5,2.29483]
[1724297296126,0.06113652,2614.9,2614.5,4.58966]
[1724297296564,0.06113652,2614.9,2614.6,2.29479]
[1724297297105,2.4937,2615.2,2614.8,2.29459]
[1724297297783,7.44,2615.3,2614.9,2.29449]
[1724297298399,7.44,2615.3,2615.0,2.2944]
[1724297298585,7.68091,2615.5,2615.0,2.2944]
[1724297298767,0.78068871,2615.4,2615.0,2.2944]
[1724297299370,5.3869,2615.5,2615.1,2.29436]
[1724297299950,0.06132743,2615.4,2615.1,2.29436]
[1724297300156,0.06132743,2615.4,2614.9,4.58896]
[1724297300848,0.06132743,2615.4,2614.6,3.0]
[1724297301010,0.06132743,2615.4,2615.2,2.29421]
[1724297301510,0.06132743,2615.4,2615.3,2.29419]
[1724297301662,0.06132743,2615.4,2615.2,2.29421]
[1724297303863,0.06132743,2615.4,2615.3,2.29419]
[1724297304075,0.06132743,2615.4,2615.3,5.050539]
[1724297304305,0.06132743,2615.4,2615.3,2.29419]
[1724297304806,0.52603375,2615.6,2615.3,4.58838]
[1724297305275,0.06138589,2615.5,2615.3,4.58838]
[1724297305860,0.06138589,2615.5,2615.4,2.2941]
[1724297307720,0.06138589,2615.5,2615.4,4.5882]
[1724297307863,0.06138589,2615.5,2615.4,5.04702]
[1724297308209,0.06138589,2615.5,2615.3,2.29414]
[1724297309114,0.06138589,2615.5,2615.1,4.58864]
[1724297309283,0.06138589,2615.5,2615.0,3.0]
[1724297309482,0.06138589,2615.5,2615.3,2.29412]
[1724297310416,2.3528,2615.4,2615.0,3.0]
[1724297310621,0.06138589,2615.5,2615.2,4.58849]
[1724297310910,0.52603375,2615.6,2615.2,2.29422]
[1724297311116,0.52603375,2615.6,2615.4,2.29409]
[1724297311465,0.52603375,2615.6,2615.4,4.58818]
[1724297311661,0.52603375,2615.6,2615.5,2.29401]
[1724297313046,0.52603375,2615.6,2615.4,2.29409]
[1724297313559,0.52603375,2615.6,2615.4,4.58809]
[1724297313700,0.52603375,2615.6,2615.5,2.29401]
[1724297314940,0.58787243,2615.6,2615.5,2.29401]
[1724297315339,0.58787243,2615.6,2615.5,2.752815]
[1724297315754,0.58787243,2615.6,2615.5,2.29401]
[1724297316609,0.58787243,2615.6,2615.4,2.29404]
[1724297316836,0.58787243,2615.6,2615.4,4.58807]
[1724297317211,0.58787243,2615.6,2615.4,2.29403]
[1724297317426,0.58787243,2615.6,2615.2,4.69543]
[1724297317427,0.58787243,2615.6,2615.3,2.29417]
[1724297317796,0.58787243,2615.6,2615.4,2.29408]
[1724297318243,0.58787243,2615.6,2615.5,2.29401]
[1724297318410,0.58787243,2615.6,2615.4,2.29408]
[1724297318614,0.58787243,2615.6,2615.4,2.29405]
[1724297319127,0.58787243,2615.6,2615.5,2.29401]
[1724297319516,0.58787243,2615.6,2615.5,2.852712]
[1724297320351,0.58787243,2615.6,2615.4,2.29405]
[1724297320958,0.58787243,2615.6,2615.2,4.69543]
[1724297320959,0.58787243,2615.6,2615.2,2.29423]
[1724297321250,0.58787243,2615.6,2615.2,2.29422]
[1724297321548,0.58787243,2615.6,2615.1,3.0]
[1724297321549,2.2843,2615.5,2615.1,3.0]
[1724297321755,2.2843,2615.5,2615.0,7.58878]
[1724297321911,0.06176186,2615.4,2615.1,2.29435]
[1724297322115,0.06176186,2615.4,2615.2,2.29427]
[1724297322314,0.52603375,2615.6,2615.3,2.29419]
[1724297322517,0.06178757,2615.5,2615.3,2.29419]
[1724297324305,0.06178757,2615.5,2615.2,2.29427]
[1724297324507,1.645,2615.3,2615.2,2.29423]
[1724297324843,1.70674201,2615.3,2615.2,2.29423]
[1724297325011,1.70674201,2615.3,2615.1,2.29436]
[1724297325544,4.37540683,2615.3,2614.7,2.29467]
[1724297325752,1.645,2614.8,2614.6,9.7848]
[1724297325906,1.645,2614.8,2614.7,2.29471]
[1724297326102,1.70644567,2614.8,2614.6,9.78478]
[1724297326347,1.70644567,2614.8,2614.7,2.29471]
[1724297327254,1.70644567,2614.8,2614.7,6.023423]
[1724297327406,0.06144567,2614.8,2614.7,6.023423]
[1724297327608,1.645,2615.0,2614.9,2.29454]
[1724297327806,1.645,2615.0,2614.9,4.58908]
[1724297328053,1.70639626,2615.0,2614.9,6.84958]
[1724297328557,1.70639626,2615.0,2614.9,7.6779383]
[1724297328558,0.06139626,2615.0,2614.9,7.6779383]
[1724297329059,0.40006482,2615.3,2615.1,2.2943]
[1724297329354,2.4831,2615.2,2614.9,2.29446]
[1724297329708,0.06125279,2615.1,2614.9,2.29446]
[1724297330060,0.06125279,2615.1,2615.0,2.29445]
[1724297330211,0.06125279,2615.1,2615.0,4.73145]
[1724297330551,0.40006482,2615.3,2615.2,2.29427]
[1724297330700,0.40006482,2615.3,2615.0,2.29439]
[1724297330941,0.40006482,2615.3,2615.0,4.58875]
[1724297331139,0.40006482,2615.3,2615.0,2.29280732]
[1724297331338,0.40006482,2615.3,2615.1,2.29435]
[1724297331793,0.40006482,2615.3,2615.0,2.29280732]
[1724297332089,0.6883813,2615.3,2615.0,2.29280732]
[1724297334754,2.4135,2615.2,2614.8,2.29457]
[1724297335192,4.70785,2615.2,2614.6,9.78473]
[1724297335341,5.94838336,2615.2,2614.7,2.29471]
[1724297335547,3.57734713,2615.2,2614.8,2.29456]
[1724297336143,3.57734713,2615.2,2614.9,2.29453]
[1724297336496,2.4135,2615.2,2615.0,2.29439]
[1724297337287,2.4135,2615.2,2614.9,2.29453]
[1724297337441,2.4135,2615.2,2614.9,4.58901]
[1724297337994,2.4135,2615.2,2614.9,2.29448]
[1724297338394,2.4135,2615.2,2614.7,2.29466]
[1724297338573,2.60460813,2615.1,2614.5,2.29484]
[1724297338775,0.07668623,2615.0,2614.5,2.29483]
[1724297339147,0.07668623,2615.0,2614.6,2.29473]
[1724297339455,0.38687436,2615.1,2614.7,2.29471]
[1724297340177,2.4135,2615.2,2614.7,2.29471]
[1724297340344,6.2712,2615.4,2614.9,2.29446]
[1724297340691,4.7431571,2615.6,2615.1,2.29436]
[1724297340908,0.98599571,2615.5,2615.1,2.29436]
[1724297341048,0.40008305,2615.3,2615.1,2.29436]
[1724297341790,0.40008305,2615.3,2614.9,4.66366]
[1724297341959,0.40008305,2615.3,2614.9,2.29446]
[1724297342183,0.76809293,2615.3,2614.9,2.29446]
[1724297342363,0.76809293,2615.3,2614.9,4.58895]
[1724297342745,0.76809293,2615.3,2615.0,2.29444]
[1724297342974,0.40008305,2615.3,2615.0,2.29444]
[1724297343549,0.40008305,2615.3,2615.1,2.29436]
[1724297344846,0.06134978,2615.2,2615.1,2.29429]
[1724297345259,0.40008305,2615.3,2615.1,2.29429]
[1724297345465,0.06134978,2615.2,2615.1,2.29429]
[1724297346306,0.40008305,2615.3,2615.0,2.29444]
[1724297346513,0.06134978,2615.2,2615.0,2.29444]
[1724297346677,0.40008305,2615.3,2615.0,2.29444]
[1724297346879,2.2545,2615.2,2614.8,2.29458]
[1724297347094,2.31591657,2615.2,2614.9,2.29448]
[1724297349811,0.06141657,2615.2,2614.9,2.29448]
[1724297350110,0.40008305,2615.3,2614.9,2.29448]
[1724297350261,0.0613854,2615.2,2614.9,2.29448]
[1724297350463,0.40008305,2615.3,2614.9,2.29448]
[1724297350666,0.0613854,2615.2,2614.9,2.29448]
[1724297350881,0.40008305,2615.3,2614.9,2.29448]
[1724297351114,0.06137053,2615.2,2614.9,2.29448]
[1724297351410,0.40008305,2615.3,2614.9,2.29448]
[1724297351611,0.40008305,2615.3,2615.0,2.29445]
[1724297351612,0.06131363,2615.1,2615.0,2.29445]
[1724297351820,0.40008305,2615.3,2615.0,2.29445]
[1724297352023,0.06131363,2615.1,2615.0,2.29445]
[1724297352322,0.40008305,2615.3,2615.0,2.29445]
[1724297352519,1.645,2615.1,2615.0,2.29445]
[1724297352868,1.70632851,2615.1,2615.0,2.29445]
[1724297359860,1.70632851,2615.1,2614.7,5.4809]
[1724297360072,1.70632851,2615.1,2614.8,2.29457]
[1724297360520,0.40009099,2615.0,2614.8,2.29457]
[1724297360707,0.06112858,2614.9,2614.8,2.29457]
[1724297361325,0.06112858,2614.9,2614.8,5.296217]
[1724297361525,0.40009099,2615.0,2614.9,4.58908]
[1724297361758,0.46133143,2615.0,2614.9,4.58908]
[1724297364537,0.46133143,2615.0,2614.9,7.58908]
[1724297365636,0.1259771,2615.6,2614.9,4.645]
[1724297365860,0.1259771,2615.6,2615.5,4.58802]
[1724297366024,0.1259771,2615.6,2615.4,2.29404]
[1724297366220,1.645,2615.4,2615.2,5.29425]
[1724297366473,4.0739771,2615.6,2615.0,3.1240597]
[1724297366762,4.0739771,2615.6,2614.8,0.707017]
[1724297366763,4.68162,2615.5,2614.8,4.99648524]
[1724297367068,4.68162,2615.5,2614.9,2.29452]
[1724297367272,4.68162,2615.5,2614.8,2.29459]
[1724297367566,4.68162,2615.5,2614.9,2.29453]
[1724297367966,0.07668623,2615.4,2614.9,2.29453]
[1724297368172,0.07668623,2615.4,2614.5,2.29488]
[1724297368173,3.948,2615.0,2614.5,2.29488]
[1724297368327,3.948,2615.0,2614.6,2.29477]
[1724297368942,3.948,2615.0,2614.5,2.29488]
[1724297369268,3.948,2615.0,2614.6,2.29479]
[1724297369771,2.4792,2614.9,2614.6,2.29479]
[1724297371066,2.4792,2614.9,2614.7,2.2947]
[1724297372025,2.55588623,2614.9,2614.5,3.0]
[1724297372252,2.55588623,2614.9,2614.4,2.29495]
[1724297372253,3.20627485,2614.9,2614.4,2.29495]
[1724297373383,0.05044806,2614.8,2614.4,2.29495]
[1724297375434,3.948,2614.7,2614.4,2.29495]
[1724297375636,3.948,2614.7,2614.0,2.29526]
[1724297375637,2.2741,2614.6,2614.0,2.29526]
[1724297375838,0.07668623,2614.5,2614.0,2.29526]
[1724297376085,0.07668623,2614.5,2614.1,2.29524]
[1724297376321,0.05011795,2614.4,2614.1,2.29524]
[1724297376930,0.05011795,2614.4,2614.2,2.29515]
[1724297377302,2.2741,2614.6,2614.2,2.29515]
[1724297377481,0.04998186,2614.5,2614.2,2.29515]
[1724297378786,2.29524,2614.1,2613.6,1.99571676]
[1724297378981,2.29524,2614.1,2613.3,1.60187318]
[1724297378982,2.29543,2613.9,2613.3,2.29589]
[1724297379282,2.3159,2614.0,2613.3,2.29589]
[1724297379283,0.04942292,2613.8,2613.3,4.59177]
[1724297379517,4.61129,2614.0,2613.3,2.29588]
[1724297379723,3.948,2613.8,2613.3,2.29588]
[1724297379929,0.04936596,2613.7,2613.3,2.29588]
[1724297380135,3.948,2613.8,2613.3,2.29588]
[1724297380300,3.948,2613.8,2613.4,2.2958]
[1724297380497,0.04936596,2613.7,2613.4,2.2958]
[1724297380698,3.948,2613.8,2613.4,2.2958]
[1724297381099,0.04936596,2613.7,2613.4,2.2958]
[1724297381299,3.948,2613.8,2613.4,2.2958]
[1724297381722,0.04936596,2613.7,2613.4,2.2958]
[1724297381923,3.948,2613.8,2613.4,2.2958]
[1724297382238,0.04936596,2613.7,2613.4,2.2958]
[1724297382738,3.948,2613.8,2613.3,2.29588]
[1724297382933,2.39106378,2613.7,2613.3,2.29588]
[1724297383084,3.948,2613.5,2612.9,4.79477]
[1724297383290,0.04837951,2613.4,2613.1,2.29603]
[1724297384708,0.04837951,2613.4,2613.1,4.59209]
[1724297385233,0.04837951,2613.4,2613.1,2.29603]
[1724297387133,0.04837951,2613.4,2613.1,4.5921]
[1724297387551,0.04837951,2613.4,2613.1,2.29603]
[1724297388246,0.04837951,2613.4,2613.1,4.5921]
[1724297388423,0.04837951,2613.4,2613.2,2.29602]
[1724297388789,0.04837951,2613.4,2613.1,2.29603]
[1724297389962,2.2653,2613.3,2612.9,2.29626]
[1724297390239,0.0480917,2613.2,2612.9,2.29626]
[1724297390540,2.2653,2613.3,2613.0,2.2962]
[1724297390739,0.04808279,2613.2,2613.1,2.29612]
[1724297391039,2.2653,2613.3,2613.2,2.29603]
[1724297393356,3.948,2613.5,2613.2,2.29603]
[1724297393357,6.2133,2613.5,2613.2,2.29603]
[1724297393633,10.6375919,2613.8,2613.4,2.29585]
[1724297393634,11.388,2613.8,2613.4,2.29585]
[1724297393834,11.388,2613.8,2613.5,2.29575]
[1724297394068,3.948,2613.8,2613.5,2.29575]
[1724297394630,3.948,2613.8,2613.4,2.29581]
[1724297394873,2.2653,2613.7,2613.1,2.29606]
[1724297395089,2.2653,2613.7,2613.4,2.29579]
[1724297396577,4.8449769,2613.8,2613.5,2.29571]
[1724297397166,4.8449769,2613.8,2613.4,2.29579]
[1724297399152,0.94056969,2613.7,2613.4,2.29579]
[1724297400411,3.948,2613.8,2613.4,4.67059]
[1724297400579,3.948,2613.8,2613.4,2.29579]
[1724297402066,3.948,2613.8,2613.4,4.59159]
[1724297402264,3.948,2613.8,2613.4,4.5916]
[1724297402467,6.2685,2614.1,2613.4,2.85836]
[1724297402695,6.2685,2614.1,2613.8,2.29545]
[1724297402696,3.948,2614.1,2613.8,2.29545]
[1724297403103,6.774361,2614.1,2613.6,2.2956]
[1724297403306,2.4936,2614.0,2613.6,2.2956]
[1724297403482,2.4936,2614.0,2613.6,4.59123]
[1724297403683,3.948,2614.1,2613.6,2.4754]
[1724297403921,3.948,2614.1,2613.8,2.29545]
[1724297404221,0.40026212,2613.9,2613.8,2.29545]
[1724297405870,0.40026212,2613.9,2613.8,4.59095]
[1724297406427,0.40026212,2613.9,2613.8,2.29545]
[1724297406591,0.40026212,2613.9,2613.6,4.771]
[1724297406766,4.02468623,2613.8,2613.3,2.29592]
[1724297406972,2.4288,2613.7,2613.4,2.29585]
[1724297407281,4.80108623,2613.7,2613.2,2.29595]
[1724297407488,5.71600807,2613.7,2613.2,2.29595]
[1724297407639,3.42040807,2613.7,2613.2,2.29595]
[1724297407840,0.40026212,2613.9,2613.8,2.2955]
[1724297408052,0.40026212,2613.9,2613.8,4.591]
[1724297408487,0.40026212,2613.9,2613.8,2.2955]
[1724297410169,0.40026212,2613.9,2613.7,4.59108]
[1724297410667,0.40026212,2613.9,2613.7,2.29554]
[1724297411394,0.40026212,2613.9,2613.7,4.59108]
[1724297411686,0.40026212,2613.9,2613.7,2.29554]
[1724297412170,0.40026212,2613.9,2613.5,5.29572]
[1724297412171,2.71636212,2613.9,2613.5,7.59141]
[1724297412490,2.71636212,2613.9,2613.6,2.29565]
[1724297412719,2.71636212,2613.9,2613.2,4.72181]
[1724297412720,3.948,2613.7,2613.3,2.29589]
[1724297413005,4.02468623,2613.7,2613.3,2.29589]
[1724297413169,3.948,2613.7,2613.3,2.29589]
[1724297413376,3.948,2613.7,2613.0,2.4258]
[1724297413377,0.40026212,2613.9,2613.0,2.4258]
[1724297413582,0.40026212,2613.9,2613.7,2.29551]
[1724297414074,0.40026212,2613.9,2613.7,4.59105]
[1724297414274,0.40026212,2613.9,2613.8,2.2955]
[1724297414620,0.40026212,2613.9,2613.5,2.29568]
[1724297414769,0.40026212,2613.9,2613.6,2.29562]
[1724297416626,0.40026212,2613.9,2613.7,2.29554]
[1724297416930,0.40026212,2613.9,2613.8,2.2955]
[1724297417893,0.44581604,2613.9,2613.8,2.2955]
[1724297419909,0.44581604,2613.9,2613.7,2.29554]
[1724297420215,0.44581604,2613.9,2613.7,4.59107]
[1724297420567,0.44581604,2613.9,2613.8,2.2955]
[1724297421569,0.44581604,2613.9,2613.8,5.050103]
[1724297423917,0.04555392,2613.9,2613.8,5.050103]
[1724297424239,3.948,2614.3,2613.8,2.754603]
[1724297424456,0.04548251,2613.9,2613.8,4.591]
[1724297424777,3.948,2614.3,2614.0,2.29532]
[1724297425584,0.04565333,2614.2,2614.0,2.29532]
[1724297425928,12.26,2614.6,2614.0,2.29529]
[1724297425929,3.948,2614.6,2614.0,2.29529]
[1724297426057,0.0455964,2614.1,2614.0,2.29529]
[1724297426259,2.3086,2614.8,2614.4,2.29492]
[1724297426698,0.04609863,2614.7,2614.4,2.29492]
[1724297427106,3.948,2614.6,2613.9,3.0]
[1724297427314,2.2983,2614.4,2614.1,2.29522]
[1724297427462,2.2983,2614.4,2614.1,4.5904]
[1724297427658,0.04596021,2614.3,2614.2,2.29515]
[1724297427859,0.04596021,2614.3,2614.2,4.5903]
[1724297428061,3.948,2614.6,2614.3,2.29502]
[1724297429100,3.948,2614.6,2614.4,2.29497]
[1724297429269,3.948,2614.6,2614.4,2.29493]
[1724297429471,6.40309682,2614.9,2614.4,2.29493]
[1724297429710,6.8780565,2614.9,2614.4,2.29493]
[1724297430003,6.40309682,2614.9,2614.4,2.2949]
[1724297430174,6.40309682,2614.9,2614.4,4.58982]
[1724297431187,6.40309682,2614.9,2614.4,2.2949]
[1724297431361,6.40309682,2614.9,2614.4,4.58982]
[1724297431915,3.97809682,2614.9,2614.4,2.2949]
[1724297432283,3.97809682,2614.9,2614.4,2.75081]
[1724297432578,3.97809682,2614.9,2614.4,2.2949]
[1724297433608,3.97809682,2614.9,2614.4,4.58981]
[1724297433917,3.97809682,2614.9,2614.4,2.2949]
[1724297434122,0.40018534,2614.8,2614.4,2.2949]
[1724297434619,0.40018534,2614.8,2614.6,2.2948]
[1724297436566,0.40018534,2614.8,2614.7,2.29471]
[1724297436833,0.40018534,2614.8,2614.6,4.98198]
[1724297437046,0.40018534,2614.8,2614.4,2.29494]
[1724297437322,0.40018534,2614.8,2614.4,4.58985]
[1724297437526,0.40018534,2614.8,2614.4,4.58983]
[1724297437835,0.40018534,2614.8,2614.4,4.58984]
[1724297438041,0.40018534,2614.8,2614.5,2.29488]
[1724297438418,0.40018534,2614.8,2614.3,3.0]
[1724297438631,2.29503,2614.4,2613.8,2.29542]
[1724297438809,4.02468623,2614.3,2613.8,2.29542]
[1724297439928,0.07668623,2614.2,2613.8,2.29542]
[1724297440248,2.3017,2614.5,2613.8,2.29542]
[1724297440249,0.40018534,2614.8,2614.7,7.04712]
[1724297440460,0.40018534,2614.8,2614.7,9.34183]
[1724297440641,0.40018534,2614.8,2614.7,9.8047185]
[1724297440844,0.40018534,2614.8,2614.7,14.50287448]
[1724297441410,0.40018534,2614.8,2614.7,17.03998598]
[1724297441622,0.1259771,2615.6,2614.7,17.03998598]
[1724297441830,0.1259771,2615.6,2615.5,2.29401]
[1724297442324,0.52596186,2615.6,2615.5,2.29401]
[1724297444336,0.52596186,2615.6,2615.5,4.58802]
[1724297444535,0.52596186,2615.6,2615.5,5.05446856]
[1724297451490,0.52596186,2615.6,2615.5,12.69217856]
[1724297451670,0.52596186,2615.6,2615.5,15.53618856]
[1724297452290,0.03009682,2616.8,2616.7,4.58592]
[1724297452584,7.44,2617.8,2615.9,2.29359]
[1724297452585,6.4159,2617.1,2616.6,2.29304]
[1724297452785,0.07668623,2617.0,2616.6,2.29304]
[1724297453290,0.07668623,2617.0,2616.4,2.29321]
[1724297453291,2.36945623,2617.0,2616.4,2.29321]
[1724297453438,3.01871485,2617.0,2616.4,2.29321]
[1724297453637,2.29323,2616.4,2615.8,2.29369]
[1724297453841,0.07668623,2616.4,2616.0,2.29357]
[1724297454038,3.948,2616.5,2616.0,2.29357]
[1724297454374,4.818902,2616.5,2616.0,4.58709]
[1724297454576,4.818902,2616.5,2616.1,2.29348]
[1724297454747,4.89558823,2616.5,2616.0,2.29352]
[1724297455262,4.818902,2616.5,2616.0,4.58703]
[1724297456448,4.818902,2616.5,2616.0,2.29351]
[1724297456660,0.7112022,2616.4,2616.0,2.29351]
[1724297456880,2.36999623,2616.3,2615.8,2.29369]
[1724297457081,3.0044322,2616.4,2615.4,2.29404]
[1724297457082,3.948,2615.9,2615.4,2.29404]
[1724297457250,4.64885023,2615.9,2615.4,2.29404]
[1724297457448,4.02468623,2615.9,2615.5,2.29401]
[1724297457786,4.02468623,2615.9,2614.4,0.8460885]
[1724297457787,2.29,2615.4,2614.8,2.29454]
[1724297457948,4.02468623,2615.3,2614.8,2.29454]
[1724297458152,0.07668623,2615.2,2614.6,4.58951]
[1724297458349,0.07668623,2615.2,2614.7,2.2947]
[1724297458548,0.07668623,2615.2,2614.8,2.29461]
[1724297458754,3.948,2615.3,2615.0,2.29445]
[1724297458968,3.948,2615.3,2615.0,2.29437]
[1724297459274,3.948,2615.6,2615.2,2.29422]
[1724297459486,3.948,2615.6,2615.1,2.29431]
[1724297460079,3.948,2615.6,2615.1,4.58861]
[1724297460395,3.948,2615.6,2615.1,2.2943]
[1724297460537,4.801181,2615.6,2615.1,2.2943]
[1724297460888,3.948,2615.6,2615.1,2.29432]
[1724297461053,3.948,2615.6,2615.1,4.58861]
[1724297461441,3.948,2615.6,2615.2,2.29426]
[1724297461838,3.948,2615.6,2615.1,2.29429]
[1724297462186,3.948,2615.6,2615.2,2.29426]
[1724297462488,3.948,2615.6,2615.2,0.458855]
[1724297462633,3.948,2615.6,2615.3,2.29414]
[1724297463268,3.948,2615.6,2615.1,2.29434]
[1724297464175,2.2749,2615.4,2614.9,2.2945]
[1724297464372,0.07668623,2615.3,2614.7,2.29466]
[1724297465085,2.2749,2615.4,2614.9,2.29448]
[1724297465415,0.40006412,2615.5,2614.9,0.229448]
[1724297465710,0.40006412,2615.5,2615.4,2.2941]
[1724297465870,0.40006412,2615.5,2615.2,2.2942]
[1724297466315,0.40006412,2615.5,2615.4,2.2941]
[1724297466679,0.40006412,2615.5,2615.4,2.52351]
[1724297467031,0.40006412,2615.5,2615.4,4.81761]
[1724297469538,0.40006412,2615.5,2615.4,2.52351]
[1724297469828,0.40006412,2615.5,2615.4,2.2941]
[1724297470338,0.40006412,2615.5,2615.4,4.5882]
[1724297471127,0.40006412,2615.5,2615.4,2.2941]
[1724297472435,0.40006412,2615.5,2615.4,4.5882]
[1724297472636,7.44,2616.0,2615.8,2.29369]
[1724297472837,7.44,2616.0,2615.8,4.58739]
[1724297472995,0.39998185,2615.9,2615.5,2.29395]
[1724297473202,0.39998185,2615.9,2615.4,4.58811]
[1724297473203,1.14398185,2615.9,2615.4,4.58811]
[1724297473401,1.14398185,2615.9,2615.5,2.294]
[1724297474498,1.14398185,2615.9,2615.6,2.29391]
[1724297474848,0.39998185,2615.9,2615.6,2.29391]
[1724297475052,0.39998185,2615.9,2615.6,4.58778]
[1724297475235,0.39998185,2615.9,2615.6,2.29387]
[1724297475408,0.39998185,2615.9,2615.6,4.58774]
[1724297475599,0.39998185,2615.9,2615.6,2.29387]
[1724297476497,0.39998185,2615.9,2615.8,2.29375]
[1724297476702,0.39998185,2615.9,2615.6,2.29387]
[1724297477748,0.39998185,2615.9,2615.8,2.29375]
[1724297479128,0.39998185,2615.9,2615.7,2.29383]
[1724297479547,0.39998185,2615.9,2615.8,4.5875]
[1724297479752,0.39998185,2615.9,2615.8,9.25765]
[1724297479960,3.04,2616.6,2616.4,2.2932]
[1724297480305,3.43991052,2616.6,2616.4,2.29317]
[1724297480614,3.43991052,2616.6,2616.4,4.58633]
[1724297481332,0.39991052,2616.6,2616.5,2.29313]
[1724297482406,0.39991052,2616.6,2616.5,5.282529]
[1724297482832,0.39991052,2616.6,2616.5,2.989399]
[1724297483240,0.39991052,2616.6,2616.5,5.282529]
[1724297483550,2.3134,2617.2,2616.5,5.282529]
[1724297483551,6.24037,2617.4,2616.8,2.2928]
[1724297483718,0.39982389,2617.0,2616.8,2.2928]
[1724297483904,10.361377,2617.4,2616.8,2.2928]
[1724297483905,8.068967,2617.4,2616.8,2.2928]
[1724297484351,0.39982456,2617.0,2616.8,2.2928]
[1724297484552,2.29245,2617.3,2616.8,2.2928]
[1724297484701,0.39982826,2617.0,2616.8,2.2928]
[1724297485302,0.39982826,2617.0,2616.7,2.29289]
[1724297486051,0.39982826,2617.0,2616.8,2.29282]
[1724297486546,0.39982826,2617.0,2616.7,2.29289]
[1724297486856,0.39982826,2617.0,2616.8,2.29285]
[1724297487223,0.39982826,2617.0,2616.5,2.989359]
[1724297487427,2.71322826,2617.0,2616.5,2.29309]
[1724297487616,2.29279,2616.9,2616.3,2.29324]
[1724297487821,2.29302,2616.7,2616.1,5.29342]
[1724297488022,2.29289,2616.8,2616.2,2.24335]
[1724297488233,3.41746683,2616.9,2616.2,2.24335]
[1724297488449,3.41746683,2616.9,2616.1,5.29342]
[1724297488450,3.41746683,2616.9,2616.3,2.2933]
[1724297488664,3.41746683,2616.9,2616.3,2.29325]
[1724297488842,2.71322826,2617.0,2616.5,2.29308]
[1724297489369,2.71322826,2617.0,2616.5,4.58616]
[1724297489544,2.71322826,2617.0,2616.5,2.29308]
[1724297489857,2.71322826,2617.0,2616.5,4.58615]
[1724297490149,2.71322826,2617.0,2616.5,2.29307]
[1724297490324,4.35261609,2617.0,2616.5,2.29307]
[1724297491224,6.24088,2616.8,2616.0,2.3764]
[1724297491426,0.624088,2616.7,2616.3,2.2933]
[1724297491623,0.624088,2616.7,2616.2,2.29334]
[1724297492158,0.624088,2616.7,2616.2,4.58669]
[1724297492370,0.624088,2616.7,2616.2,2.29334]
[1724297492863,0.624088,2616.7,2616.2,4.58668]
[1724297493043,0.624088,2616.7,2616.3,2.2933]
[1724297493611,3.948,2616.8,2616.4,2.29321]
[1724297494340,0.39982826,2617.0,2616.4,2.4669]
[1724297494523,0.39982826,2617.0,2616.5,2.29307]
[1724297495514,2.69254826,2617.0,2616.5,2.29307]
[1724297495711,1.63732183,2616.9,2616.3,2.29323]
[1724297495918,1.63732183,2616.9,2616.4,2.29322]
[1724297497769,1.63732183,2616.9,2616.1,4.76031]
[1724297497914,4.76653,2616.8,2616.2,2.29338]
[1724297498914,6.4216,2616.8,2615.9,2.29361]
[1724297499120,0.39982826,2617.0,2615.7,4.70499]
[1724297499121,2.29344,2616.2,2615.7,4.70499]
[1724297499450,0.229344,2616.1,2615.7,4.70499]
[1724297499631,7.06015,2616.4,2615.7,6.99878]
[1724297499818,3.65587902,2617.6,2615.9,2.29361]
[1724297499819,4.76637,2617.0,2615.9,2.29361]
[1724297500023,0.3999064,2616.5,2616.4,2.29322]
[1724297500217,2.29279,2616.9,2616.3,4.7045]
[1724297500432,0.705914,2616.8,2616.3,2.2933]
[1724297500647,0.39988106,2616.5,2616.3,2.2933]
[1724297500873,0.705914,2616.8,2616.3,2.2933]
[1724297501069,0.3998889,2616.5,2616.3,2.2933]